[Event "Late-Titled-Tuesday-Blitz-March-12-2024"]
[Site "Chess.com"]
[Date "2024.03.12"]
[Round "2"]
[White "Angry_Twin"]
[Black "Yeritsyaan"]
[Result "1-0"]
[WhiteElo "2956"]
[BlackElo "2647"]
[TimeControl "180+1"]
[EndTime "14:17:04 PDT"]
[Termination "Angry_Twin won by resignation"]

1. e4 {[%clk 0:03:00.9]} 1... c5 {[%clk 0:02:57.6]} 2. Nf3 {[%clk 0:03:01]} 2...
d6 {[%clk 0:02:57.7]} 3. Bb5+ {[%clk 0:03:00]} 3... Bd7 {[%clk 0:02:55.6]} 4.
Bxd7+ {[%clk 0:02:57.3]} 4... Qxd7 {[%clk 0:02:55.1]} 5. c4 {[%clk 0:02:56.3]}
5... Nf6 {[%clk 0:02:53.3]} 6. Nc3 {[%clk 0:02:56.3]} 6... g6 {[%clk 0:02:52.5]}
7. d4 {[%clk 0:02:55.6]} 7... cxd4 {[%clk 0:02:53.4]} 8. Nxd4 {[%clk 0:02:56.5]}
8... Bg7 {[%clk 0:02:53.8]} 9. f3 {[%clk 0:02:56.7]} 9... O-O {[%clk 0:02:54.3]}
10. Be3 {[%clk 0:02:56.8]} 10... Nc6 {[%clk 0:02:54.7]} 11. b3 {[%clk
0:02:55.2]} 11... a6 {[%clk 0:02:53.8]} 12. a4 {[%clk 0:02:53.7]} 12... Rac8
{[%clk 0:02:45.2]} 13. O-O {[%clk 0:02:53.1]} 13... Nxd4 {[%clk 0:02:41.1]} 14.
Bxd4 {[%clk 0:02:51.7]} 14... Qc6 {[%clk 0:02:40.5]} 15. Rb1 {[%clk 0:02:41.1]}
15... Rfd8 {[%clk 0:02:26.3]} 16. Kh1 {[%clk 0:02:38.1]} 16... e6 {[%clk
0:02:24.9]} 17. Qd2 {[%clk 0:02:36.5]} 17... d5 {[%clk 0:02:10.5]} 18. cxd5
{[%clk 0:02:36.4]} 18... exd5 {[%clk 0:02:09.7]} 19. e5 {[%clk 0:02:35.9]} 19...
Nd7 {[%clk 0:02:06.5]} 20. f4 {[%clk 0:02:36]} 20... Nc5 {[%clk 0:02:06.2]} 21.
Ne2 {[%clk 0:02:10.7]} 21... Ne6 {[%clk 0:01:41.7]} 22. f5 {[%clk 0:01:59.1]}
22... Nxd4 {[%clk 0:01:35.2]} 23. Nxd4 {[%clk 0:02:00]} 23... Qc3 {[%clk
0:01:30.7]} 24. Qf4 {[%clk 0:01:59.9]} 24... Re8 {[%clk 0:01:14]} 25. f6 {[%clk
0:02:00]} 25... Bf8 {[%clk 0:01:13.3]} 26. e6 {[%clk 0:02:00.6]} 26... Qc7
{[%clk 0:01:01.1]} 27. e7 {[%clk 0:01:57.3]} 27... Bxe7 {[%clk 0:00:54.1]} 28.
fxe7 {[%clk 0:01:57.5]} 28... Qxf4 {[%clk 0:00:52.8]} 29. Rxf4 {[%clk
0:01:57.7]} 29... Rxe7 {[%clk 0:00:53.7]} 30. h3 {[%clk 0:01:58.2]} 30... Rc3
{[%clk 0:00:52.1]} 31. Rf6 {[%clk 0:01:39.1]} 31... Re4 {[%clk 0:00:50.5]} 32.
Nf3 {[%clk 0:01:38.8]} 32... Rb4 {[%clk 0:00:47.7]} 33. Rd6 {[%clk 0:01:38.2]}
33... Rcxb3 {[%clk 0:00:45.8]} 34. Rxb3 {[%clk 0:01:38.2]} 34... Rxb3 {[%clk
0:00:46.7]} 35. Rxd5 {[%clk 0:01:38.9]} 35... b5 {[%clk 0:00:45.9]} 36. axb5
{[%clk 0:01:34.3]} 36... axb5 {[%clk 0:00:45.9]} 37. Rd8+ {[%clk 0:01:35]} 37...
Kg7 {[%clk 0:00:45.7]} 38. Rd7 {[%clk 0:01:35.9]} 38... Kf6 {[%clk 0:00:44.7]}
39. Rd6+ {[%clk 0:01:29.5]} 39... Ke7 {[%clk 0:00:42.6]} 40. Rb6 {[%clk
0:01:29.1]} 40... h6 {[%clk 0:00:39.6]} 41. Ne5 {[%clk 0:01:26.4]} 41... b4
{[%clk 0:00:35.8]} 42. Kh2 {[%clk 0:01:23.5]} 42... Rb1 {[%clk 0:00:29.1]} 43.
Nc6+ {[%clk 0:01:22.9]} 43... Kf6 {[%clk 0:00:24.6]} 44. Nxb4+ {[%clk
0:01:20.3]} 44... Kg7 {[%clk 0:00:24.8]} 45. Nd5 {[%clk 0:01:20.3]} 45... Rd1
{[%clk 0:00:24.3]} 46. Ne3 {[%clk 0:01:19.9]} 46... Rd7 {[%clk 0:00:24.6]} 47.
Nc4 {[%clk 0:01:19.1]} 47... Re7 {[%clk 0:00:24]} 48. Kg3 {[%clk 0:01:18.7]}
48... h5 {[%clk 0:00:24.3]} 49. Kf3 {[%clk 0:01:18.2]} 49... Rc7 {[%clk
0:00:24.2]} 50. Nd6 {[%clk 0:01:17.5]} 50... Rd7 {[%clk 0:00:23.7]} 51. Ne4
{[%clk 0:01:16]} 51... Ra7 {[%clk 0:00:23.6]} 52. Ng5 {[%clk 0:01:16]} 52... Re7
{[%clk 0:00:23.3]} 53. Rc6 {[%clk 0:01:09]} 53... Ra7 {[%clk 0:00:22.6]} 54. Ne4
{[%clk 0:01:08.9]} 54... Re7 {[%clk 0:00:22.5]} 55. Kf4 {[%clk 0:01:08.9]} 55...
Ra7 {[%clk 0:00:22.5]} 56. Rd6 {[%clk 0:01:08.6]} 56... Rb7 {[%clk 0:00:21.5]}
57. Nc5 {[%clk 0:01:08.7]} 57... Rb5 {[%clk 0:00:19.7]} 58. Rc6 {[%clk
0:01:08.6]} 58... Rb4+ {[%clk 0:00:19.8]} 59. Kf3 {[%clk 0:01:08.8]} 59... Rb3+
{[%clk 0:00:20.3]} 60. Nxb3 {[%clk 0:01:08.4]} 1-0

[Event "Late-Titled-Tuesday-Blitz-March-12-2024"]
[Site "Chess.com"]
[Date "2024.03.12"]
[Round "2"]
[White "Danito1954"]
[Black "pooh2012"]
[Result "0-1"]
[WhiteElo "2289"]
[BlackElo "2536"]
[TimeControl "180+1"]
[EndTime "14:17:04 PDT"]
[Termination "pooh2012 won by resignation"]

1. e4 {[%clk 0:02:54.1]} 1... e5 {[%clk 0:03:00.2]} 2. Nf3 {[%clk 0:02:53.5]}
2... Nc6 {[%clk 0:02:53.9]} 3. Bc4 {[%clk 0:02:51.3]} 3... Be7 {[%clk
0:02:48.9]} 4. d4 {[%clk 0:02:46.7]} 4... exd4 {[%clk 0:02:47.5]} 5. c3 {[%clk
0:02:46.1]} 5... d6 {[%clk 0:02:45]} 6. h3 {[%clk 0:02:40.4]} 6... Nf6 {[%clk
0:02:35.4]} 7. cxd4 {[%clk 0:02:40.4]} 7... Nxe4 {[%clk 0:02:33.5]} 8. Nc3
{[%clk 0:02:23.7]} 8... Nf6 {[%clk 0:02:23.2]} 9. O-O {[%clk 0:02:19.3]} 9...
O-O {[%clk 0:02:22.8]} 10. Re1 {[%clk 0:02:17.2]} 10... d5 {[%clk 0:02:20.9]}
11. Bb3 {[%clk 0:02:16.9]} 11... h6 {[%clk 0:02:18.4]} 12. Bf4 {[%clk
0:02:16.7]} 12... Bb4 {[%clk 0:02:16.8]} 13. Qd3 {[%clk 0:02:15.1]} 13... Ne4
{[%clk 0:02:15.4]} 14. Nxd5 {[%clk 0:02:13]} 14... Bxe1 {[%clk 0:01:56.3]} 15.
Qxe4 {[%clk 0:02:12.6]} 15... Re8 {[%clk 0:01:38.7]} 16. Qd3 {[%clk 0:02:05.8]}
16... Ba5 {[%clk 0:01:34.6]} 17. Bc2 {[%clk 0:02:05.8]} 17... Qxd5 {[%clk
0:01:24.7]} 18. Qh7+ {[%clk 0:01:57.3]} 18... Kf8 {[%clk 0:01:25.1]} 19. Qh8+
{[%clk 0:01:58.2]} 19... Ke7 {[%clk 0:01:23.9]} 20. Qxg7 {[%clk 0:01:59.1]}
20... Bxh3 {[%clk 0:01:14]} 21. Qxh6 {[%clk 0:01:49.9]} 21... Be6 {[%clk
0:00:55.5]} 22. Bb3 {[%clk 0:01:41.6]} 22... Qf5 {[%clk 0:00:46.1]} 23. d5
{[%clk 0:01:35.4]} 23... Rh8 {[%clk 0:00:41.7]} 24. Bg5+ {[%clk 0:01:30.8]}
24... Kd6 {[%clk 0:00:39.8]} 25. Bf4+ {[%clk 0:01:30.6]} 25... Kc5 {[%clk
0:00:34.1]} 26. Be3+ {[%clk 0:01:27.2]} 26... Kb5 {[%clk 0:00:33.3]} 27. a4+
{[%clk 0:01:22]} 27... Kb4 {[%clk 0:00:29.3]} 28. Bd2+ {[%clk 0:01:22.3]} 28...
Kc5 {[%clk 0:00:24.6]} 29. Qe3+ {[%clk 0:01:21.5]} 29... Kd6 {[%clk 0:00:24.1]}
30. dxe6 {[%clk 0:01:22.3]} 30... Bxd2 {[%clk 0:00:22.4]} 31. Qxd2+ {[%clk
0:01:20.8]} 31... Ke7 {[%clk 0:00:22.3]} 32. Qd7+ {[%clk 0:01:20.2]} 32... Kf8
{[%clk 0:00:20.9]} 33. Re1 {[%clk 0:01:10.3]} 33... Re8 {[%clk 0:00:18.1]} 34.
e7+ {[%clk 0:00:56.4]} 34... Nxe7 {[%clk 0:00:16.8]} 35. Rxe7 {[%clk 0:00:53.7]}
35... Qb1+ {[%clk 0:00:14.9]} 36. Bd1 {[%clk 0:00:54.1]} 36... Rxe7 {[%clk
0:00:14.2]} 37. Qd8+ {[%clk 0:00:53.1]} 37... Re8 {[%clk 0:00:14.8]} 38. Qd2
{[%clk 0:00:49.9]} 38... Qh7 {[%clk 0:00:12]} 39. Qb4+ {[%clk 0:00:30]} 39...
Re7 {[%clk 0:00:08.5]} 0-1

[Event "Late-Titled-Tuesday-Blitz-March-12-2024"]
[Site "Chess.com"]
[Date "2024.03.12"]
[Round "2"]
[White "ACollins05"]
[Black "KaydenTroffChess"]
[Result "0-1"]
[WhiteElo "2573"]
[BlackElo "2818"]
[TimeControl "180+1"]
[EndTime "14:17:05 PDT"]
[Termination "KaydenTroffChess won on time"]

1. d4 {[%clk 0:03:00.9]} 1... Nf6 {[%clk 0:02:56.5]} 2. c4 {[%clk 0:03:00.4]}
2... g6 {[%clk 0:02:56.6]} 3. Nc3 {[%clk 0:03:00.5]} 3... d5 {[%clk 0:02:56.9]}
4. Nf3 {[%clk 0:02:49.8]} 4... Bg7 {[%clk 0:02:56.5]} 5. Qb3 {[%clk 0:02:40.4]}
5... dxc4 {[%clk 0:02:52]} 6. Qxc4 {[%clk 0:02:41.3]} 6... O-O {[%clk
0:02:52.1]} 7. e4 {[%clk 0:02:41.1]} 7... a6 {[%clk 0:02:51.8]} 8. Be2 {[%clk
0:02:39.4]} 8... b5 {[%clk 0:02:50.5]} 9. Qb3 {[%clk 0:02:39.2]} 9... c5 {[%clk
0:02:48.1]} 10. dxc5 {[%clk 0:02:40.1]} 10... Be6 {[%clk 0:02:48]} 11. Qc2
{[%clk 0:02:40.4]} 11... Nbd7 {[%clk 0:02:47.8]} 12. Be3 {[%clk 0:02:39]} 12...
Rc8 {[%clk 0:02:47.9]} 13. Rd1 {[%clk 0:02:38.9]} 13... b4 {[%clk 0:02:48.1]}
14. Nd5 {[%clk 0:02:37.2]} 14... Bxd5 {[%clk 0:02:48.3]} 15. exd5 {[%clk
0:02:37.2]} 15... Nxc5 {[%clk 0:02:47.3]} 16. O-O {[%clk 0:02:35.9]} 16... Qd6
{[%clk 0:02:31.5]} 17. Qc4 {[%clk 0:02:25.7]} 17... a5 {[%clk 0:02:10.4]} 18.
Rc1 {[%clk 0:02:18.9]} 18... Nfd7 {[%clk 0:02:02.5]} 19. Rc2 {[%clk 0:01:56.1]}
19... h6 {[%clk 0:01:32.6]} 20. Rfc1 {[%clk 0:01:49.7]} 20... Na4 {[%clk
0:01:31.3]} 21. Qb5 {[%clk 0:01:15.4]} 21... Rxc2 {[%clk 0:00:48]} 22. Rxc2
{[%clk 0:01:16.3]} 22... Nxb2 {[%clk 0:00:47.9]} 23. Qxa5 {[%clk 0:01:03.6]}
23... Ne5 {[%clk 0:00:16.2]} 24. Bc5 {[%clk 0:00:44.9]} 24... Nxf3+ {[%clk
0:00:14.1]} 25. Bxf3 {[%clk 0:00:43.3]} 25... Qe5 {[%clk 0:00:14.8]} 26. Re2
{[%clk 0:00:26.4]} 26... Qf5 {[%clk 0:00:13.9]} 27. Be4 {[%clk 0:00:17.2]} 27...
Qg5 {[%clk 0:00:12.2]} 28. Qxb4 {[%clk 0:00:15.6]} 28... Rc8 {[%clk 0:00:06.4]}
29. Be3 {[%clk 0:00:14.2]} 29... Qe5 {[%clk 0:00:05.3]} 30. Bf3 {[%clk
0:00:09.7]} 30... Nd3 {[%clk 0:00:05.2]} 31. Qb3 {[%clk 0:00:05.9]} 31... Qa1+
{[%clk 0:00:04.6]} 0-1

[Event "Late-Titled-Tuesday-Blitz-March-12-2024"]
[Site "Chess.com"]
[Date "2024.03.12"]
[Round "2"]
[White "DryCounty"]
[Black "stasOR4ik"]
[Result "1-0"]
[WhiteElo "2632"]
[BlackElo "2424"]
[TimeControl "180+1"]
[EndTime "14:17:05 PDT"]
[Termination "DryCounty won by resignation"]

1. e4 {[%clk 0:03:00.9]} 1... c6 {[%clk 0:03:00.2]} 2. d4 {[%clk 0:02:59.6]}
2... d5 {[%clk 0:03:01.1]} 3. Nc3 {[%clk 0:02:59.2]} 3... dxe4 {[%clk
0:03:01.4]} 4. Nxe4 {[%clk 0:02:59.6]} 4... Nf6 {[%clk 0:03:02.3]} 5. Ng3 {[%clk
0:02:58.2]} 5... h5 {[%clk 0:03:01.7]} 6. h4 {[%clk 0:02:57.6]} 6... Nbd7 {[%clk
0:02:58.9]} 7. Nf3 {[%clk 0:02:56.4]} 7... e6 {[%clk 0:02:54]} 8. Bc4 {[%clk
0:02:54.7]} 8... Be7 {[%clk 0:02:54.1]} 9. c3 {[%clk 0:02:52.2]} 9... Nd5 {[%clk
0:02:51.8]} 10. Bg5 {[%clk 0:02:48.4]} 10... b5 {[%clk 0:02:50.8]} 11. Bb3
{[%clk 0:02:46.9]} 11... Bb7 {[%clk 0:02:51.1]} 12. Qd2 {[%clk 0:02:43.8]} 12...
c5 {[%clk 0:02:50.3]} 13. Ne4 {[%clk 0:02:33.1]} 13... c4 {[%clk 0:02:37]} 14.
Nd6+ {[%clk 0:02:26.7]} 14... Bxd6 {[%clk 0:02:23.6]} 15. Bxd8 {[%clk
0:02:25.4]} 15... Rxd8 {[%clk 0:02:11.5]} 16. Bc2 {[%clk 0:02:21.3]} 16... Bf4
{[%clk 0:02:04.9]} 17. Qe2 {[%clk 0:02:19.9]} 17... Bh6 {[%clk 0:02:02]} 18. g3
{[%clk 0:02:08]} 18... O-O {[%clk 0:01:54.2]} 19. O-O {[%clk 0:02:07.7]} 19...
Rfe8 {[%clk 0:01:49.2]} 20. Ng5 {[%clk 0:02:06.1]} 20... f6 {[%clk 0:01:45.2]}
21. Bh7+ {[%clk 0:01:45.2]} 21... Kh8 {[%clk 0:01:37.5]} 22. Nf7+ {[%clk
0:01:32.6]} 22... Kxh7 {[%clk 0:01:35.5]} 23. Nxd8 {[%clk 0:01:33.2]} 23... Rxd8
{[%clk 0:01:23.3]} 24. Qxe6 {[%clk 0:01:33]} 24... Nf8 {[%clk 0:01:05]} 25. Qf7
{[%clk 0:01:28.1]} 25... Ng6 {[%clk 0:01:00.9]} 26. Qxb7 {[%clk 0:01:26.3]}
26... f5 {[%clk 0:00:46.5]} 27. Qxb5 {[%clk 0:01:25.5]} 27... f4 {[%clk
0:00:46.5]} 28. Kh2 {[%clk 0:01:18.5]} 28... Rd6 {[%clk 0:00:37.8]} 29. Rae1
{[%clk 0:01:16.4]} 29... Nf6 {[%clk 0:00:31.6]} 30. Kg2 {[%clk 0:01:10.3]} 30...
fxg3 {[%clk 0:00:28.6]} 31. fxg3 {[%clk 0:01:09.5]} 31... Rb6 {[%clk 0:00:28.9]}
32. Qxc4 {[%clk 0:01:05.4]} 32... Rxb2+ {[%clk 0:00:21.8]} 33. Re2 {[%clk
0:01:04.6]} 33... Ng4 {[%clk 0:00:19.8]} 34. Rf3 {[%clk 0:00:53.6]} 34... Rb6
{[%clk 0:00:16.6]} 35. Qd3 {[%clk 0:00:49.4]} 35... a5 {[%clk 0:00:14.3]} 36. a4
{[%clk 0:00:48.7]} 36... Rb3 {[%clk 0:00:13.7]} 37. d5 {[%clk 0:00:39.5]} 37...
Bc1 {[%clk 0:00:11.9]} 38. d6 {[%clk 0:00:36.1]} 38... Kh6 {[%clk 0:00:11.4]}
39. d7 {[%clk 0:00:31.8]} 39... N6e5 {[%clk 0:00:11.8]} 40. Rxe5 {[%clk
0:00:28.4]} 40... Nxe5 {[%clk 0:00:12.7]} 41. Qd6+ {[%clk 0:00:28]} 41... Ng6
{[%clk 0:00:09.8]} 42. d8=Q {[%clk 0:00:26.1]} 42... Rb2+ {[%clk 0:00:09.9]} 43.
Kf1 {[%clk 0:00:25]} 1-0

[Event "Late-Titled-Tuesday-Blitz-March-12-2024"]
[Site "Chess.com"]
[Date "2024.03.12"]
[Round "2"]
[White "Bkmzzzzz"]
[Black "newyorkmouse"]
[Result "0-1"]
[WhiteElo "2381"]
[BlackElo "2572"]
[TimeControl "180+1"]
[EndTime "14:17:10 PDT"]
[Termination "newyorkmouse won on time"]

1. e4 {[%clk 0:03:00.9]} 1... b6 {[%clk 0:02:57]} 2. d3 {[%clk 0:02:58.8]} 2...
Bb7 {[%clk 0:02:57.6]} 3. Nd2 {[%clk 0:02:59.3]} 3... g6 {[%clk 0:02:56.2]} 4.
g3 {[%clk 0:02:59.5]} 4... Bg7 {[%clk 0:02:56.3]} 5. Bg2 {[%clk 0:03:00]} 5...
f5 {[%clk 0:02:56.8]} 6. Qe2 {[%clk 0:02:55]} 6... e6 {[%clk 0:02:56.3]} 7. Ngf3
{[%clk 0:02:49.2]} 7... Ne7 {[%clk 0:02:56]} 8. O-O {[%clk 0:02:44.5]} 8... O-O
{[%clk 0:02:56.3]} 9. c3 {[%clk 0:02:44.4]} 9... c5 {[%clk 0:02:55.4]} 10. e5
{[%clk 0:02:32.5]} 10... b5 {[%clk 0:02:47.7]} 11. d4 {[%clk 0:02:29.2]} 11...
Qb6 {[%clk 0:02:42.5]} 12. dxc5 {[%clk 0:02:14.8]} 12... Qxc5 {[%clk 0:02:40]}
13. Nb3 {[%clk 0:02:14.9]} 13... Qc7 {[%clk 0:02:18.6]} 14. Re1 {[%clk
0:02:00.4]} 14... a6 {[%clk 0:02:16.9]} 15. Be3 {[%clk 0:01:53.7]} 15... Nbc6
{[%clk 0:02:11.8]} 16. Bc5 {[%clk 0:01:49.3]} 16... f4 {[%clk 0:02:05.2]} 17.
Rad1 {[%clk 0:01:40.3]} 17... fxg3 {[%clk 0:02:04.5]} 18. hxg3 {[%clk
0:01:38.4]} 18... Rf5 {[%clk 0:01:57.1]} 19. Bd6 {[%clk 0:01:37.3]} 19... Qb6
{[%clk 0:01:54.9]} 20. Nh4 {[%clk 0:01:24.5]} 20... Rxe5 {[%clk 0:01:41.9]} 21.
Bxe5 {[%clk 0:01:24]} 21... Nxe5 {[%clk 0:01:42.8]} 22. Qe3 {[%clk 0:00:43.1]}
22... Qxe3 {[%clk 0:01:14.3]} 23. Rxe3 {[%clk 0:00:38.4]} 23... Bxg2 {[%clk
0:01:15.2]} 24. Kxg2 {[%clk 0:00:31.5]} 24... Nd5 {[%clk 0:01:15.3]} 25. Re2
{[%clk 0:00:24]} 25... Rf8 {[%clk 0:01:14.8]} 26. Nc5 {[%clk 0:00:19.5]} 26...
g5 {[%clk 0:01:14.2]} 27. f4 {[%clk 0:00:16.4]} 27... gxf4 {[%clk 0:00:56.8]}
28. Rxd5 {[%clk 0:00:12.3]} 28... exd5 {[%clk 0:00:51.8]} 29. gxf4 {[%clk
0:00:12.6]} 29... Rxf4 {[%clk 0:00:51.8]} 30. Kg3 {[%clk 0:00:11.6]} 30... Rg4+
{[%clk 0:00:49.1]} 31. Kh3 {[%clk 0:00:11.8]} 31... Bf6 {[%clk 0:00:48.7]} 32.
Ng2 {[%clk 0:00:10.7]} 32... h5 {[%clk 0:00:37.1]} 33. Nxa6 {[%clk 0:00:09.9]}
33... Nf3 {[%clk 0:00:34.8]} 34. Ne3 {[%clk 0:00:09]} 34... Ng1+ {[%clk
0:00:32.9]} 35. Kh2 {[%clk 0:00:07.8]} 35... Nxe2 {[%clk 0:00:27.9]} 36. Nxg4
{[%clk 0:00:07.8]} 36... hxg4 {[%clk 0:00:28.8]} 37. Nc5 {[%clk 0:00:06.9]}
37... d6 {[%clk 0:00:22.4]} 38. Nd7 {[%clk 0:00:03.8]} 38... Be5+ {[%clk
0:00:22.1]} 39. Kg2 {[%clk 0:00:04.2]} 39... Kf7 {[%clk 0:00:22]} 0-1

[Event "Late-Titled-Tuesday-Blitz-March-12-2024"]
[Site "Chess.com"]
[Date "2024.03.12"]
[Round "2"]
[White "Josetricks"]
[Black "egnfanclub"]
[Result "0-1"]
[WhiteElo "2549"]
[BlackElo "2383"]
[TimeControl "180+1"]
[EndTime "14:17:11 PDT"]
[Termination "egnfanclub won by resignation"]

1. c4 {[%clk 0:02:59]} 1... c5 {[%clk 0:02:55.6]} 2. Nf3 {[%clk 0:02:57.3]} 2...
Nf6 {[%clk 0:02:55.8]} 3. Nc3 {[%clk 0:02:56.8]} 3... d5 {[%clk 0:02:55.4]} 4.
cxd5 {[%clk 0:02:54.6]} 4... Nxd5 {[%clk 0:02:56.3]} 5. e3 {[%clk 0:02:55.4]}
5... Nc6 {[%clk 0:02:55.1]} 6. Qc2 {[%clk 0:02:48.1]} 6... Ndb4 {[%clk
0:02:51.4]} 7. Qb1 {[%clk 0:02:43.5]} 7... g6 {[%clk 0:02:48.5]} 8. a3 {[%clk
0:02:43.1]} 8... Nd5 {[%clk 0:02:45.7]} 9. Bc4 {[%clk 0:02:43]} 9... Bf5 {[%clk
0:02:32]} 10. Qa2 {[%clk 0:02:23.5]} 10... e6 {[%clk 0:02:08.3]} 11. Nxd5 {[%clk
0:02:20.7]} 11... exd5 {[%clk 0:02:08.5]} 12. Bxd5 {[%clk 0:02:21]} 12... Qc7
{[%clk 0:02:06.7]} 13. O-O {[%clk 0:02:16.2]} 13... Bg7 {[%clk 0:02:06.6]} 14.
d4 {[%clk 0:02:05.2]} 14... cxd4 {[%clk 0:01:53.4]} 15. Nxd4 {[%clk 0:02:04.8]}
15... Nxd4 {[%clk 0:01:49.8]} 16. exd4 {[%clk 0:02:05.7]} 16... O-O {[%clk
0:01:49.9]} 17. Be3 {[%clk 0:02:03.1]} 17... Rac8 {[%clk 0:01:42.5]} 18. h3
{[%clk 0:01:57.5]} 18... Qd7 {[%clk 0:01:41]} 19. Rfd1 {[%clk 0:01:52.8]} 19...
Rfd8 {[%clk 0:01:33.6]} 20. Bf3 {[%clk 0:01:37.3]} 20... Rc2 {[%clk 0:01:25.6]}
21. Rac1 {[%clk 0:01:27.9]} 21... Rdc8 {[%clk 0:01:13.6]} 22. Rxc2 {[%clk
0:01:24.2]} 22... Bxc2 {[%clk 0:01:00.1]} 23. Rd2 {[%clk 0:01:16.9]} 23... b6
{[%clk 0:00:58.5]} 24. Bg4 {[%clk 0:01:10.9]} 24... Bf5 {[%clk 0:00:58.1]} 25.
Bxf5 {[%clk 0:01:05.5]} 25... Rc1+ {[%clk 0:00:55.3]} 26. Kh2 {[%clk 0:01:05.5]}
26... Qxf5 {[%clk 0:00:54.6]} 27. Qb3 {[%clk 0:00:57.2]} 27... Bf8 {[%clk
0:00:44.5]} 28. Rd1 {[%clk 0:00:34.7]} 28... Bd6+ {[%clk 0:00:41.9]} 29. g3
{[%clk 0:00:34.6]} 29... Rc2 {[%clk 0:00:37.9]} 30. Rf1 {[%clk 0:00:17.4]} 30...
h5 {[%clk 0:00:31.2]} 31. h4 {[%clk 0:00:17.3]} 31... Re2 {[%clk 0:00:24.4]} 32.
Qc4 {[%clk 0:00:12.4]} 32... Qf3 {[%clk 0:00:23]} 33. Rg1 {[%clk 0:00:08.9]}
33... Qxe3 {[%clk 0:00:20.3]} 34. Qc8+ {[%clk 0:00:07.1]} 34... Kg7 {[%clk
0:00:19.9]} 0-1

[Event "Late-Titled-Tuesday-Blitz-March-12-2024"]
[Site "Chess.com"]
[Date "2024.03.12"]
[Round "2"]
[White "Statham_01"]
[Black "WhiteKnight2612"]
[Result "1-0"]
[WhiteElo "2604"]
[BlackElo "2848"]
[TimeControl "180+1"]
[EndTime "14:17:14 PDT"]
[Termination "Statham_01 won by checkmate"]

1. e4 {[%clk 0:03:00.9]} 1... c5 {[%clk 0:03:00.4]} 2. Nf3 {[%clk 0:03:00.4]}
2... d6 {[%clk 0:03:00.6]} 3. d4 {[%clk 0:03:01]} 3... cxd4 {[%clk 0:03:01.1]}
4. Nxd4 {[%clk 0:03:01.9]} 4... Nf6 {[%clk 0:03:01.6]} 5. Nc3 {[%clk 0:03:02]}
5... a6 {[%clk 0:03:01.9]} 6. a3 {[%clk 0:03:00.6]} 6... e5 {[%clk 0:03:01.7]}
7. Nf5 {[%clk 0:03:00.9]} 7... Nxe4 {[%clk 0:02:48.8]} 8. Nxg7+ {[%clk
0:03:00.2]} 8... Bxg7 {[%clk 0:02:48]} 9. Nxe4 {[%clk 0:03:01.1]} 9... O-O
{[%clk 0:02:44.9]} 10. Bc4 {[%clk 0:02:41.3]} 10... Nc6 {[%clk 0:02:34.4]} 11.
Bg5 {[%clk 0:02:31.3]} 11... Qa5+ {[%clk 0:02:19.4]} 12. b4 {[%clk 0:02:17.3]}
12... Nxb4 {[%clk 0:02:18.9]} 13. axb4 {[%clk 0:01:36.4]} 13... Qxb4+ {[%clk
0:02:19.8]} 14. Nd2 {[%clk 0:01:35.7]} 14... Bf5 {[%clk 0:01:53.6]} 15. O-O
{[%clk 0:01:32]} 15... Rac8 {[%clk 0:01:52.9]} 16. Bb3 {[%clk 0:01:28.5]} 16...
h6 {[%clk 0:01:37.2]} 17. Be3 {[%clk 0:01:22.6]} 17... Rfd8 {[%clk 0:01:37.5]}
18. Ra4 {[%clk 0:01:22.2]} 18... Qc3 {[%clk 0:01:34.7]} 19. Qh5 {[%clk
0:00:59.5]} 19... Bxc2 {[%clk 0:01:26.3]} 20. Bxf7+ {[%clk 0:00:34.4]} 20... Kh7
{[%clk 0:01:19]} 21. Rg4 {[%clk 0:00:34.6]} 21... Rc7 {[%clk 0:00:37.7]} 22.
Bg6+ {[%clk 0:00:31.4]} 22... Kg8 {[%clk 0:00:35.2]} 23. Bxh6 {[%clk 0:00:25]}
23... Rdd7 {[%clk 0:00:27]} 24. Bh7+ {[%clk 0:00:21.5]} 24... Kf8 {[%clk
0:00:23.9]} 25. Bxc2 {[%clk 0:00:14.7]} 25... Qxc2 {[%clk 0:00:22.8]} 26. Bxg7+
{[%clk 0:00:13.4]} 26... Ke7 {[%clk 0:00:23.4]} 27. Qh4+ {[%clk 0:00:12.3]}
27... Ke6 {[%clk 0:00:23.2]} 28. Ne4 {[%clk 0:00:09.1]} 28... Rf7 {[%clk
0:00:18.2]} 29. Qh6+ {[%clk 0:00:09.3]} 29... Kd5 {[%clk 0:00:18.3]} 30. Qxd6+
{[%clk 0:00:09.3]} 30... Kc4 {[%clk 0:00:17.3]} 31. Ng5+ {[%clk 0:00:07.8]}
31... Kb5 {[%clk 0:00:16.3]} 32. Nxf7 {[%clk 0:00:07.5]} 32... Rxf7 {[%clk
0:00:14.8]} 33. Rb4+ {[%clk 0:00:07.2]} 33... Ka5 {[%clk 0:00:15.4]} 34. Qb6#
{[%clk 0:00:07.4]} 1-0

[Event "Late-Titled-Tuesday-Blitz-March-12-2024"]
[Site "Chess.com"]
[Date "2024.03.12"]
[Round "2"]
[White "baag"]
[Black "mightysmasher"]
[Result "0-1"]
[WhiteElo "2841"]
[BlackElo "2598"]
[TimeControl "180+1"]
[EndTime "14:17:14 PDT"]
[Termination "mightysmasher won on time"]

1. c4 {[%clk 0:03:00.4]} 1... e6 {[%clk 0:02:48.2]} 2. g3 {[%clk 0:03:00.5]}
2... d5 {[%clk 0:02:47.8]} 3. Bg2 {[%clk 0:03:01.4]} 3... Nf6 {[%clk 0:02:47.4]}
4. Nf3 {[%clk 0:03:01.8]} 4... Be7 {[%clk 0:02:47.6]} 5. O-O {[%clk 0:03:02.4]}
5... O-O {[%clk 0:02:48.2]} 6. d4 {[%clk 0:03:01.6]} 6... c6 {[%clk 0:02:48.5]}
7. Qc2 {[%clk 0:03:01.3]} 7... b6 {[%clk 0:02:48.8]} 8. Nbd2 {[%clk 0:02:59.6]}
8... Bb7 {[%clk 0:02:49.2]} 9. e4 {[%clk 0:03:00.2]} 9... Na6 {[%clk 0:02:46.9]}
10. a3 {[%clk 0:02:58.5]} 10... Rc8 {[%clk 0:02:46.2]} 11. Rd1 {[%clk
0:02:43.7]} 11... c5 {[%clk 0:02:37.2]} 12. exd5 {[%clk 0:02:41.7]} 12... exd5
{[%clk 0:02:33.2]} 13. dxc5 {[%clk 0:02:29.2]} 13... Nxc5 {[%clk 0:02:29.6]} 14.
Nd4 {[%clk 0:02:10.5]} 14... dxc4 {[%clk 0:02:21.6]} 15. Bxb7 {[%clk 0:01:57.8]}
15... Nxb7 {[%clk 0:02:20.8]} 16. Nf5 {[%clk 0:01:58.4]} 16... Nd6 {[%clk
0:02:10.4]} 17. Nf3 {[%clk 0:01:48.8]} 17... Qc7 {[%clk 0:01:58]} 18. Bf4 {[%clk
0:01:45.8]} 18... Rfd8 {[%clk 0:01:51.4]} 19. N3d4 {[%clk 0:01:01.9]} 19... a6
{[%clk 0:01:27.4]} 20. Qa4 {[%clk 0:00:27.7]} 20... Bf8 {[%clk 0:00:55.7]} 21.
Qxa6 {[%clk 0:00:22.4]} 21... Ra8 {[%clk 0:00:20]} 22. Bxd6 {[%clk 0:00:22.7]}
22... Bxd6 {[%clk 0:00:19.6]} 23. Qb5 {[%clk 0:00:23.4]} 23... Bc5 {[%clk
0:00:19.4]} 24. Qxc4 {[%clk 0:00:23]} 24... Qe5 {[%clk 0:00:17.9]} 25. Re1
{[%clk 0:00:19.1]} 25... Qd5 {[%clk 0:00:17.2]} 26. Qxd5 {[%clk 0:00:09.4]}
26... Rxd5 {[%clk 0:00:18.1]} 27. Rac1 {[%clk 0:00:05.6]} 27... g6 {[%clk
0:00:14.9]} 28. b4 {[%clk 0:00:02.6]} 28... gxf5 {[%clk 0:00:12.7]} 29. Nc6
{[%clk 0:00:03.3]} 29... Bd6 {[%clk 0:00:11.2]} 30. Re3 {[%clk 0:00:02.6]} 30...
Kg7 {[%clk 0:00:08.1]} 31. Rce1 {[%clk 0:00:01.2]} 31... Rc8 {[%clk 0:00:07.9]}
32. Na7 {[%clk 0:00:01.7]} 32... Rc2 {[%clk 0:00:07.6]} 33. a4 {[%clk
0:00:01.2]} 33... Ne4 {[%clk 0:00:07.6]} 34. Nb5 {[%clk 0:00:01.1]} 34... Bxb4
{[%clk 0:00:07.4]} 0-1